bitfinex/quotes_ETHUSD_20251125
["timestamp","ask_amount","ask_price","bid_price","bid_amount"]
[1764086477129,0.32265536,2898.6,2898.1,7.575832]
[1764086477286,0.32265536,2898.6,2898.2,0.4891]
[1764086477626,0.221,2898.7,2898.5,0.499]
[1764086477829,0.221,2898.7,2898.6,3.44994135]
[1764086478519,0.0501,2898.7,2898.3,6.90055215]
[1764086478694,0.0501,2898.7,2898.1,3.63616227]
[1764086478896,0.0501,2898.7,2898.1,7.08669882]
[1764086479418,0.32258351,2898.8,2898.1,11.02633537]
[1764086479633,0.92980816,2899.4,2898.2,0.4891]
[1764086479834,0.82195575,2899.3,2898.1,0.1857]
[1764086480129,2.72109613,2899.2,2898.1,0.1857]
[1764086480417,2.02748651,2899.1,2898.1,3.63617706]
[1764086480641,0.54355575,2899.0,2898.1,7.08675886]
[1764086480845,0.54355575,2899.0,2898.2,0.4967]
[1764086480846,0.32255575,2898.9,2898.2,0.4967]
[1764086481436,0.32255575,2898.8,2898.2,0.4967]
[1764086481637,0.32255575,2898.7,2898.2,0.4967]
[1764086481814,0.1338,2898.9,2898.3,6.9005969]
[1764086482015,0.32273645,2898.8,2898.3,6.9005969]
[1764086482437,0.32273645,2898.8,2898.4,0.4967]
[1764086482637,0.32273645,2898.7,2898.4,0.4967]
[1764086482852,0.1338,2898.9,2898.4,0.4967]
[1764086483018,0.45658911,2898.9,2898.5,6.90012074]
[1764086483218,0.32278911,2898.8,2898.5,6.90012074]
[1764086483721,0.1338,2898.9,2898.2,3.4504175]
[1764086483722,0.32278911,2898.7,2898.2,3.4504175]
[1764086483915,0.32278911,2898.6,2898.2,3.4504175]
[1764086484145,4.06280571,2898.9,2898.2,6.900835]
[1764086484346,0.3228933,2898.8,2898.2,3.4504175]
[1764086484526,0.3228933,2898.7,2898.2,6.900835]
[1764086484727,0.3228933,2898.6,2898.2,6.900835]
[1764086484937,0.96482404,2899.0,2898.3,0.4967]
[1764086485248,0.32286985,2898.9,2898.4,6.9003588]
[1764086485446,0.32286985,2898.8,2898.4,6.9003588]
[1764086485652,0.221,2899.0,2898.5,0.4967]
[1764086485943,0.32285481,2898.9,2898.4,6.9003588]
[1764086486449,0.32285481,2898.9,2898.8,0.4534]
[1764086486614,0.32285481,2898.9,2898.5,0.4967]
[1764086487012,0.45665481,2898.9,2898.2,10.35117223]
[1764086487256,0.32286375,2898.8,2898.2,6.90075473]
[1764086487437,0.32286375,2898.8,2898.2,3.45033723]
[1764086487753,0.32286375,2898.7,2898.2,6.90075473]
[1764086487917,0.4794,2898.8,2898.2,3.45033723]
[1764086487918,0.32286375,2898.6,2898.2,3.45033723]
[1764086488141,3.58339992,2898.9,2898.2,6.90075473]
[1764086488142,0.32290625,2898.5,2898.2,6.90075473]
[1764086488336,0.1338,2898.9,2898.2,7.39745473]
[1764086488552,0.80228549,2898.8,2898.2,3.45033723]
[1764086488852,0.32288549,2898.7,2898.2,3.45033723]
[1764086489062,0.32288549,2898.6,2898.1,0.199]
[1764086489238,0.1338,2898.9,2898.1,0.6957]
[1764086489239,0.32288549,2898.5,2898.1,0.6957]
[1764086489444,1.35718906,2898.9,2898.1,0.199]
[1764086489772,0.32293786,2898.8,2898.1,0.199]
[1764086489941,0.32293786,2898.7,2898.2,0.4967]
[1764086490137,0.32293786,2898.6,2898.2,0.4967]
[1764086490371,0.32295063,2898.5,2898.1,0.199]
[1764086490568,4.06281287,2898.9,2898.1,0.199]
[1764086490771,1.54640749,2898.8,2898.1,0.001]
[1764086490974,0.0699,2898.2,2898.1,0.001]
[1764086491538,0.86815196,2898.2,2898.1,0.001]
[1764086491779,4.31856946,2898.2,2898.1,0.001]
[1764086492151,1.06725851,2898.2,2898.1,0.001]
[1764086492352,0.32295196,2898.2,2898.1,0.6524]
[1764086492572,0.32295196,2898.2,2898.1,1.1491]
[1764086492760,0.32295196,2898.2,2898.1,0.4544]
[1764086492944,0.221,2898.5,2898.1,0.6524]
[1764086493139,0.32289165,2898.4,2898.2,3.4504175]
[1764086493363,0.32289165,2898.4,2898.1,3.45151722]
[1764086493878,0.32289165,2898.4,2898.1,0.001]
[1764086494061,0.0699,2898.2,2898.1,0.001]
[1764086494271,0.39279165,2898.2,2898.1,0.001]
[1764086494438,0.0699,2898.2,2898.1,0.001]
[1764086494638,0.39279165,2898.2,2898.1,0.001]
[1764086495282,0.32289165,2898.2,2898.1,0.6524]
[1764086495442,0.32289165,2898.2,2898.1,0.4544]
[1764086495647,0.32305334,2898.2,2898.1,0.001]
[1764086495846,0.32305334,2898.4,2898.1,0.001]
[1764086496059,0.32305334,2898.3,2898.1,0.001]
[1764086496255,0.32225334,2898.2,2898.1,0.001]
[1764086496460,1.44476854,2898.5,2898.1,0.001]
[1764086496677,0.7004,2898.5,2898.1,0.001]
[1764086496882,0.0699,2898.2,2898.1,0.001]
[1764086497484,0.221,2898.5,2898.1,0.001]
[1764086497687,0.94659411,2898.5,2898.1,0.001]
[1764086497856,0.74445764,2898.4,2898.1,0.001]
[1764086498252,0.221,2898.5,2898.1,0.001]
[1764086498453,0.482,2898.2,2898.1,0.001]
[1764086498983,0.5493,2898.2,2898.1,0.001]
[1764086499560,1.2937674,2898.2,2898.1,0.001]
[1764086500252,0.7444674,2898.2,2898.1,0.001]
[1764086500448,0.1338,2898.9,2898.1,1.1491]
[1764086500653,0.221,2898.8,2898.1,1.1491]
[1764086500855,0.221,2898.8,2898.2,0.4967]
[1764086501381,0.221,2898.8,2898.7,0.4534]
[1764086501569,0.002,2899.0,2898.7,0.4534]
[1764086501777,0.002,2899.0,2898.4,0.4967]
[1764086502653,0.002,2899.0,2898.3,6.9005969]
[1764086502948,0.1338,2898.9,2898.3,6.9005969]
[1764086503174,0.1338,2898.9,2898.3,10.35089535]
[1764086503574,0.002,2899.0,2898.3,10.35089535]
[1764086503871,0.002,2899.0,2898.4,0.4967]
[1764086504605,0.1338,2898.9,2898.3,10.35089535]
[1764086505175,0.002,2899.0,2898.3,3.45029845]
[1764086505516,0.002,2899.0,2898.4,0.4967]
[1764086507517,0.002,2899.0,2898.5,6.90012074]
[1764086507718,0.002,2899.0,2898.5,10.35018111]
[1764086507919,0.002,2899.0,2898.9,0.4534]
[1764086508283,0.002,2899.0,2898.9,0.9501]
[1764086508987,0.002,2899.0,2898.9,1.0501]
[1764086509379,0.002,2899.0,2898.9,5.85178243]
[1764086509827,0.002,2900.2,2899.5,0.4534]
[1764086510114,0.002,2900.2,2900.1,0.1]
[1764086510288,0.002,2900.7,2900.4,0.1]
[1764086510491,0.002,2900.7,2900.6,0.862804]
[1764086510715,0.002,2900.7,2900.6,1.457004]
[1764086511313,0.002,2900.7,2900.6,5.63016068]
[1764086512913,0.002,2900.7,2900.6,0.9515]
[1764086513141,0.002,2900.7,2899.7,0.7152]
[1764086513142,0.693,2900.7,2899.7,0.7152]
[1764086513442,0.693,2900.7,2899.8,6.89702738]
[1764086513610,0.693,2900.7,2899.8,3.44851369]
[1764086513611,0.0951,2900.6,2899.8,3.44851369]
[1764086514354,0.0951,2900.6,2899.8,6.89702738]
[1764086515548,0.1434,2900.7,2899.7,0.4942]
[1764086515705,0.1434,2900.7,2899.6,10.94045465]
[1764086515907,0.1434,2900.7,2899.7,0.4942]
[1764086516347,0.002,2900.7,2899.7,0.4942]
[1764086516548,0.002,2900.7,2899.9,0.1]
[1764086516849,0.002,2900.7,2900.0,0.221]
[1764086517845,0.002,2900.7,2900.1,6.89631392]
[1764086518646,0.002,2900.7,2900.1,10.34447088]
[1764086518834,0.002,2900.7,2900.6,0.4573]
[1764086519335,0.002,2900.7,2900.6,0.9515]
[1764086519870,0.002,2900.7,2900.6,4.39906257]
[1764086520227,0.0012,2900.7,2900.6,4.39906257]
[1764086520660,0.0012,2900.7,2900.6,5.63016068]
[1764086522074,0.0012,2900.7,2900.6,6.32588382]
[1764086522277,0.0012,2900.7,2900.6,6.54688382]
[1764086522438,0.0012,2900.7,2900.6,5.85116068]
[1764086522641,0.0012,2900.7,2900.6,5.44565668]
[1764086523136,0.0012,2900.7,2900.6,3.44756257]
[1764086523467,0.0012,2900.7,2900.2,6.89607612]
[1764086523641,0.084,2900.7,2900.2,6.89607612]
[1764086523974,0.084,2900.7,2899.5,0.198]
[1764086523975,0.0046,2900.3,2899.5,0.198]
[1764086524288,0.4625,2900.6,2898.5,4.06191551]
[1764086524289,0.0821,2900.2,2899.0,0.4587]
[1764086524431,0.0821,2900.2,2899.0,1.18429411]
[1764086524639,0.0821,2900.2,2899.1,0.4587]
[1764086524988,0.5454,2900.2,2899.1,0.4587]
[1764086525337,0.5454,2900.2,2900.1,0.001]
[1764086525569,3.44871731,2900.7,2900.1,0.001]
[1764086525787,0.0012,2900.7,2900.1,0.001]
[1764086526203,0.0828,2900.2,2900.1,0.001]
[1764086526504,0.0012,2900.7,2900.1,0.001]
[1764086527655,0.0012,2900.7,2900.2,0.4587]
[1764086527887,0.0012,2900.7,2900.1,0.001]
[1764086529096,0.0012,2900.7,2900.1,0.4597]
[1764086529268,0.0012,2900.7,2900.6,0.4909]
[1764086529755,0.0012,2900.7,2900.6,0.9496]
[1764086529953,0.0012,2900.7,2900.6,3.44756257]
[1764086530388,0.0012,2900.7,2900.6,4.39716257]
[1764086530599,0.0012,2900.7,2900.6,3.44756257]
[1764086530973,0.084,2900.7,2900.2,3.44803806]
[1764086531377,0.5465,2900.7,2900.2,3.44803806]
[1764086531857,0.5465,2900.7,2900.2,6.89607612]
[1764086532200,0.5465,2900.7,2900.1,0.001]
[1764086532692,0.084,2900.7,2900.1,0.001]
[1764086533000,0.0012,2900.7,2900.1,0.4597]
[1764086533401,0.0012,2900.7,2900.1,0.001]
[1764086534510,0.0012,2900.7,2900.1,0.5597]
[1764086534804,0.0012,2900.7,2900.6,0.4909]
[1764086534967,0.0012,2900.7,2900.6,0.9496]
[1764086536206,0.0012,2900.7,2900.6,4.39716257]
[1764086536701,0.0012,2900.7,2900.6,4.61816257]
[1764086537091,0.0012,2900.7,2900.6,3.93846257]
[1764086537294,0.0012,2900.7,2900.6,3.44756257]
[1764086537792,0.5465,2900.7,2900.5,3.44764128]
[1764086537992,0.5465,2900.7,2900.1,0.001]
[1764086537993,0.0046,2900.6,2900.1,0.001]
[1764086538200,0.32656323,2900.6,2900.1,0.001]
[1764086538368,0.79286323,2900.6,2900.1,0.001]
[1764086538569,0.0046,2900.6,2900.1,0.001]
[1764086538799,0.4663,2900.5,2900.1,0.001]
[1764086538998,0.0783,2900.2,2900.1,0.001]
[1764086539406,0.40032359,2900.2,2900.1,0.001]
[1764086539708,0.0783,2900.2,2900.1,0.001]
[1764086540110,0.40032359,2900.2,2900.1,0.001]
[1764086540405,0.0783,2900.2,2900.1,0.001]
[1764086540844,0.32202359,2900.2,2900.1,0.001]
[1764086541242,0.0012,2900.7,2900.1,0.946]
[1764086541538,0.32219597,2900.6,2900.1,0.001]
[1764086541724,0.0012,2900.7,2900.1,0.001]
[1764086541725,0.32219597,2900.5,2900.1,0.001]
[1764086542052,0.32219863,2900.4,2900.1,0.001]
[1764086542258,0.32219863,2900.3,2900.1,0.001]
[1764086542455,0.0012,2900.7,2900.2,0.4744]
[1764086542606,0.0012,2900.7,2900.2,0.5744]
[1764086542802,0.32344004,2900.7,2900.2,0.4744]
[1764086543006,0.32223602,2900.6,2900.2,0.4744]
[1764086543250,0.0012,2900.7,2900.1,0.222]
[1764086543420,0.32223068,2900.6,2900.1,0.6964]
[1764086543818,0.32223068,2900.6,2900.5,0.4706]
[1764086544037,0.32223068,2900.6,2900.3,6.89583836]
[1764086544206,0.32143068,2900.6,2900.3,6.89583836]
[1764086544433,0.0012,2900.7,2900.3,3.44791918]
[1764086544642,0.4738,2900.7,2900.3,3.44791918]
[1764086544971,0.0766,2900.4,2900.1,0.001]
[1764086545107,0.0766,2900.2,2900.1,0.001]
[1764086545521,0.221,2900.3,2900.1,0.001]
[1764086545712,0.0805,2900.2,2900.1,0.001]
[1764086546250,1.19429411,2900.5,2900.1,0.001]
[1764086546456,4.39435429,2900.5,2900.1,0.001]
[1764086546657,4.14129549,2900.5,2900.1,0.001]
[1764086546810,0.4854,2900.2,2900.1,0.001]
[1764086547022,6.98380228,2900.2,2899.6,0.001]
[1764086547237,1.00498975,2899.7,2898.1,0.6734]
[1764086547506,0.2986,2899.6,2898.7,3.44977387]
[1764086547711,0.7673,2899.6,2898.7,3.44977387]
[1764086547940,1.50969472,2899.6,2898.5,3.45002304]
[1764086548110,5.68404038,2899.6,2898.4,3.4501794]
[1764086548311,5.68404038,2899.6,2898.4,6.9003588]
[1764086548632,6.08954438,2899.6,2898.4,3.4501794]
[1764086548834,6.08954438,2899.6,2898.3,3.45028147]
[1764086549035,6.08954438,2899.6,2898.1,3.45144625]
[1764086549210,6.08954438,2899.6,2898.1,0.001]
[1764086549411,7.01534567,2899.6,2898.1,0.001]
[1764086549918,3.31960211,2899.5,2898.1,0.001]
[1764086550109,0.2132,2898.2,2898.1,0.001]
[1764086550307,8.93876373,2898.2,2898.1,0.001]
[1764086550610,1.21169811,2898.1,2897.9,0.001]
[1764086550810,1.22321947,2898.0,2897.9,0.001]
[1764086551029,1.69191947,2898.0,2897.9,0.001]
[1764086551349,0.7673,2898.0,2897.9,0.001]
[1764086551522,0.221,2898.0,2897.9,0.001]
[1764086552083,0.7673,2898.0,2897.9,0.001]
[1764086552355,4.94354973,2898.0,2897.9,0.001]
[1764086552656,5.34905373,2898.0,2897.9,0.001]
[1764086553058,6.08756866,2898.0,2897.9,0.001]
[1764086553426,6.08756866,2898.0,2897.8,0.001]
[1764086553427,0.72559411,2897.9,2897.7,0.001]
[1764086553627,1.22078235,2897.8,2897.7,0.001]
[1764086553829,1.68948235,2897.8,2896.4,3.63636234]
[1764086554026,1.28787835,2897.7,2896.4,3.63636234]
[1764086554334,4.72680698,2897.7,2896.5,7.37927079]
[1764086554540,4.72680698,2897.7,2897.1,0.1839]
[1764086554541,0.80319411,2897.7,2897.1,0.1839]
[1764086554734,1.49289411,2897.7,2896.6,0.4744]
[1764086555327,5.34941098,2897.7,2896.4,4.11082852]
[1764086555532,5.34941098,2897.7,2896.4,0.6583]
[1764086555792,5.34941098,2897.7,2896.4,4.1108561]
[1764086555979,5.12841098,2897.7,2896.4,7.0890179]
[1764086556130,1.12249404,2897.7,2897.1,0.1839]
[1764086556339,1.49289411,2897.7,2896.7,0.4744]
[1764086556567,1.49289411,2897.7,2896.7,3.92657812]
[1764086556568,4.94390698,2897.7,2896.7,3.92657812]
[1764086556755,9.99699878,2897.7,2896.5,3.45236752]
[1764086556930,9.99699878,2897.7,2896.4,3.63641405]
[1764086557263,9.99699878,2897.7,2896.4,0.1839]
[1764086557462,9.99699878,2897.7,2896.4,4.11084962]
[1764086557665,9.99699878,2897.7,2896.5,3.45242077]
[1764086557844,9.99699878,2897.7,2896.6,3.45231888]
[1764086558246,9.99699878,2897.7,2896.5,3.4524426]
[1764086558660,1.67739811,2897.7,2896.6,0.4744]
[1764086558870,0.6043,2898.2,2897.1,0.1839]
[1764086559049,0.25298449,2898.1,2897.1,0.1839]
[1764086559372,0.25298449,2898.1,2897.5,0.001]
[1764086559790,1.4511786,2898.1,2897.5,0.001]
[1764086559956,0.0776,2897.7,2897.5,0.001]
[1764086560154,0.3006,2897.7,2897.5,0.001]
[1764086560601,0.223,2897.7,2897.5,0.001]
[1764086561362,0.002,2897.7,2897.6,0.946]
[1764086562494,0.002,2897.7,2897.6,4.39713197]
[1764086563486,0.002,2897.7,2897.6,3.92273197]
[1764086563792,0.002,2897.7,2897.6,4.39713197]
[1764086566703,0.002,2897.7,2897.6,0.4716]
[1764086566886,0.002,2897.7,2897.6,3.92273197]
[1764086567200,0.002,2897.7,2897.6,0.001]
[1764086568199,0.0012,2897.7,2897.6,0.001]
[1764086568600,0.0012,2897.7,2897.6,4.39713197]
[1764086571870,0.0012,2897.7,2897.6,0.001]
[1764086572983,0.0012,2897.7,2897.6,0.4985]
[1764086573309,0.002,2898.0,2897.6,0.9513]
[1764086573480,0.002,2898.0,2897.9,0.4975]
[1764086573880,0.002,2898.3,2898.1,0.1]
[1764086574202,0.221,2899.0,2898.2,0.682]
[1764086574390,0.221,2899.0,2898.9,0.4975]
[1764086575000,0.221,2899.0,2898.9,3.94708432]
[1764086575747,0.92586526,2900.2,2898.9,11.29905296]
[1764086576041,0.32123042,2900.1,2899.7,0.1845]
[1764086576337,0.32123042,2900.0,2899.7,0.1845]
[1764086576540,0.32123042,2899.9,2899.7,0.1845]
[1764086576834,0.32123042,2899.8,2899.7,0.1845]
[1764086577041,0.99310666,2900.5,2899.8,3.44851369]
[1764086577236,0.321357,2900.4,2899.8,3.44851369]
[1764086577392,0.321357,2900.3,2899.8,3.44851369]
[1764086577592,0.321357,2900.3,2899.3,3.44906793]
[1764086577593,0.321357,2900.2,2899.1,3.44927977]
[1764086577793,0.321357,2900.1,2899.4,0.1845]
[1764086578007,0.48738449,2900.3,2899.4,0.1845]
[1764086578008,0.321357,2900.0,2899.4,0.1845]
[1764086578298,0.321357,2899.9,2899.4,0.1845]
[1764086578511,0.321357,2899.8,2899.4,0.1845]
[1764086578818,0.002,2899.6,2899.4,0.1845]
[1764086579130,0.002,2899.6,2899.5,3.44887049]
[1764086579328,0.002,2899.6,2899.5,4.39917049]
[1764086580114,0.002,2899.6,2899.5,4.49917049]
[1764086580528,0.002,2899.6,2899.5,5.6302686]
[1764086580946,0.002,2899.6,2899.5,4.39917049]
[1764086581093,0.002,2899.6,2899.0,0.1845]
[1764086581094,0.002,2899.6,2899.1,0.4726]
[1764086581529,0.002,2899.6,2899.2,3.44922423]
[1764086581795,0.002,2899.6,2899.1,3.92194634]
[1764086581998,0.002,2899.6,2899.2,0.4726]
[1764086582198,0.002,2899.6,2899.5,0.4896]
[1764086582428,0.002,2899.6,2899.5,0.9622]
[1764086582629,0.002,2899.6,2899.5,0.4896]
[1764086582938,0.002,2899.6,2899.5,0.9622]
[1764086583105,0.0012,2900.7,2899.8,0.1]
[1764086583316,0.0012,2900.7,2900.6,0.4896]
[1764086583536,0.0012,2900.7,2900.6,1.0622]
[1764086584126,0.0012,2900.7,2900.6,0.9622]
[1764086584743,0.0012,2900.7,2900.6,0.4896]
[1764086585038,0.0012,2900.7,2900.6,4.40976257]
[1764086585253,0.0012,2900.7,2900.6,4.50976257]
[1764086585868,0.0012,2900.7,2900.6,4.91526657]
[1764086586029,0.0012,2900.7,2900.6,5.64086068]
[1764086586607,0.0012,2900.7,2900.6,5.23535668]
[1764086586839,0.0012,2900.7,2900.6,5.64086068]
[1764086587540,0.002,2901.0,2900.7,0.405504]
[1764086587738,0.002,2901.0,2900.9,0.5896]
[1764086587939,0.002,2901.0,2900.9,0.4896]
[1764086588141,0.002,2901.0,2900.6,10.34268771]
[1764086588142,0.002,2901.0,2900.6,3.44756257]
[1764086588326,0.002,2901.0,2900.6,6.89512514]
[1764086589209,0.002,2901.0,2900.6,7.36772514]
[1764086589652,0.002,2901.0,2900.6,6.89512514]
[1764086590039,0.002,2901.0,2900.6,3.44756257]
[1764086590240,0.1439,2900.9,2900.6,3.44756257]
[1764086591343,0.1439,2900.9,2900.0,0.6936]
[1764086591344,0.636,2900.9,2900.1,6.89631392]
[1764086591547,0.52408449,2900.8,2900.1,3.44815696]
[1764086591835,1.2496786,2900.8,2899.9,3.44829939]
[1764086592043,1.2496786,2900.8,2899.1,3.4492796]
[1764086592044,0.221,2900.7,2899.6,3.44875155]
[1764086592258,0.52328449,2900.6,2899.6,6.8975031]
[1764086592462,0.4921,2900.6,2899.6,3.44875155]
[1764086592771,0.31909021,2900.5,2899.1,6.89866524]
[1764086592974,0.31909021,2900.5,2899.3,0.5726]
[1764086593329,0.31909021,2900.5,2899.4,3.44898944]
[1764086593531,1.21769411,2900.4,2899.4,3.44898944]
[1764086593959,0.4921,2900.3,2899.4,3.44898944]
[1764086594142,0.4941,2901.0,2899.5,0.4726]
[1764086594463,0.03318449,2901.0,2899.5,0.4726]
[1764086594663,0.002,2901.0,2899.6,0.1]
[1764086594865,0.002,2901.0,2899.7,0.221]
[1764086595063,0.002,2900.4,2899.7,0.6936]
[1764086595230,0.002,2900.4,2900.0,3.44827586]
[1764086595433,0.002,2900.4,2900.3,0.4896]
[1764086595632,0.002,2900.4,2899.9,10.34518431]
[1764086595633,0.002,2900.4,2899.9,11.03878431]
[1764086595831,0.002,2900.4,2900.0,0.4726]
[1764086596767,0.002,2900.4,2899.9,6.89678954]
[1764086597467,0.002,2900.4,2899.8,6.89699294]
[1764086598263,0.002,2900.4,2899.7,3.4486042]
[1764086598571,0.002,2900.4,2899.7,6.89723681]
[1764086598734,0.002,2900.4,2899.7,7.36983681]
[1764086599471,0.002,2900.4,2900.3,0.4896]
[1764086599941,0.002,2900.4,2900.3,0.9622]
[1764086600132,0.002,2900.4,2900.3,0.4896]
[1764086600329,0.002,2900.4,2899.9,6.89678954]
[1764086600569,0.0558,2900.4,2899.9,6.89678954]
[1764086601064,0.0558,2900.4,2900.0,0.4803]
[1764086601065,0.002,2900.4,2900.0,0.4803]
[1764086601553,0.002,2900.4,2899.9,3.44839477]
[1764086602366,0.002,2900.4,2899.9,3.92869477]
[1764086602733,0.002,2900.4,2899.9,0.4803]
[1764086602931,0.002,2900.4,2899.8,6.89702738]
[1764086603665,0.002,2900.4,2899.7,6.89726522]
[1764086603831,0.32229241,2900.4,2899.7,6.89726522]
[1764086604039,0.32029241,2900.3,2899.7,6.89726522]
[1764086604236,0.32029241,2900.2,2899.7,6.89726522]
[1764086604441,0.002,2900.4,2899.7,6.89726522]
[1764086604659,0.32163243,2900.3,2899.7,6.89726522]
[1764086604988,0.32163243,2900.2,2899.7,6.89726522]
[1764086605193,0.32163243,2900.1,2899.7,3.44863261]
[1764086605493,0.32163243,2900.0,2899.7,6.89726522]
[1764086605650,0.002,2900.4,2899.6,6.8975031]
[1764086605851,0.002,2900.4,2899.6,10.82655465]
[1764086605852,0.32182449,2900.3,2899.6,10.82655465]
[1764086606053,0.32182449,2900.2,2899.7,0.4803]
[1764086606247,0.32182449,2900.1,2899.7,0.4803]
[1764086606481,0.002,2900.4,2899.3,0.4803]
[1764086606691,0.002,2900.4,2899.1,6.89869268]
[1764086606692,0.81754325,2900.3,2899.1,6.89869268]
[1764086606916,1.06345959,2900.2,2899.1,7.37899268]
[1764086607069,0.32184325,2900.1,2899.2,0.4803]
[1764086607400,0.32184325,2900.0,2899.2,0.5803]
[1764086607561,0.32184325,2899.9,2899.3,6.8982168]
[1764086607753,0.32184325,2899.8,2899.3,10.3473252]
[1764086607956,0.32184325,2899.7,2899.3,10.3473252]
[1764086608155,0.7417484,2900.3,2899.4,0.4803]
[1764086608357,0.002,2900.4,2899.6,0.5906]
[1764086608358,0.32186671,2900.2,2899.6,0.5906]
[1764086608577,0.002,2900.4,2899.6,1.0709]
[1764086608783,0.32186245,2900.3,2899.6,0.9709]
[1764086608990,0.32186245,2900.2,2899.7,0.4803]
[1764086609204,0.3218922,2900.1,2899.8,0.03448513]
[1764086609362,0.002,2900.4,2899.7,0.8013]
[1764086609554,0.002,2900.4,2899.8,10.34554107]
[1764086609766,0.002,2900.4,2900.3,0.4906]
[1764086610271,0.002,2900.4,2900.3,0.9709]
[1764086610473,0.002,2900.4,2900.3,1.0709]
[1764086610810,0.002,2900.4,2900.3,0.9709]
[1764086611161,0.002,2900.4,2900.3,1.476404]
[1764086611672,0.002,2900.4,2900.3,5.64991729]
[1764086611869,0.002,2900.4,2900.3,5.24441329]
[1764086612063,0.002,2900.4,2900.3,5.36541329]
[1764086612506,0.002,2900.4,2900.3,3.93851918]
[1764086612799,0.0558,2900.4,2900.0,3.44827586]
[1764086613094,0.32192693,2900.3,2900.0,3.44827586]
[1764086613513,0.4851,2900.1,2899.6,3.44875155]
[1764086613669,0.1659,2899.7,2899.5,0.001]
[1764086614003,0.80702693,2899.6,2899.5,0.001]
[1764086614175,0.32192693,2899.6,2899.5,0.001]
[1764086614874,0.32192693,2899.9,2899.5,0.9719]
[1764086615075,0.32205219,2899.8,2899.6,0.4906]
[1764086615290,0.221,2900.1,2899.6,0.4906]
[1764086615291,0.002,2900.4,2900.3,0.4906]
[1764086615495,0.002,2900.4,2900.0,0.4906]
[1764086615672,0.002,2900.4,2900.1,6.89631392]
[1764086616194,0.0012,2900.4,2900.3,0.4906]
[1764086616397,0.0012,2900.4,2900.1,6.89631392]
[1764086617197,0.0012,2900.4,2900.1,7.37661392]
[1764086617403,0.0012,2900.4,2900.3,0.4906]
[1764086617762,0.0012,2900.4,2900.3,4.41881918]
[1764086618103,0.0012,2900.4,2900.3,4.51881918]
[1764086618310,0.002,2900.6,2900.4,0.405504]
[1764086618466,0.002,2900.6,2900.5,5.56393278]
[1764086618667,0.002,2900.6,2900.5,6.76982689]
[1764086618864,0.002,2900.6,2900.5,2.01749411]
[1764086619863,0.002,2900.6,2900.5,5.24417554]
[1764086620205,0.002,2900.6,2900.5,10.11750832]
[1764086620396,1e-08,2900.7,2900.6,1.69649411]
[1764086620569,1e-08,2900.7,2900.6,1.91749411]
[1764086620765,1e-08,2900.7,2900.6,2.01749411]
[1764086621007,1e-08,2900.7,2900.6,2.42299811]
[1764086621766,1e-08,2900.7,2900.6,5.87056068]
[1764086624103,1e-08,2900.7,2900.6,5.14405668]
[1764086624302,1e-08,2900.7,2900.6,5.46505668]
[1764086624606,0.002,2900.9,2900.8,0.505504]
[1764086624770,1e-08,2901.4,2901.3,1.194004]
[1764086624971,1e-08,2901.4,2901.3,0.6885]
[1764086625212,1e-08,2901.4,2901.3,1.3898]
[1764086625370,1e-08,2901.4,2901.3,1.895304]
[1764086625570,1e-08,2901.4,2901.3,1.795304]
[1764086625781,1e-08,2901.4,2901.3,1.895304]
[1764086626181,1e-08,2901.4,2901.3,5.84662888]
[1764086626403,1e-08,2901.4,2901.3,6.06762888]
[1764086628516,1e-08,2901.4,2901.3,5.84662888]
[1764086628699,1e-08,2901.4,2901.3,6.06762888]
[1764086631109,1e-08,2901.4,2901.3,5.96762888]
[1764086631523,1e-08,2901.7,2901.3,6.06762888]
[1764086631677,1e-08,2901.7,2901.6,5.63322289]
[1764086632088,1e-08,2902.0,2901.9,0.4608]
[1764086632292,1e-08,2902.0,2901.9,5.10982212]
[1764086632495,0.002,2902.6,2902.1,5.57792689]
[1764086632816,0.002,2902.6,2902.2,1.59189811]
[1764086633116,0.002,2902.6,2902.5,4.90762878]
[1764086633715,0.002,2902.6,2902.5,5.38412878]
[1764086634599,0.002,2902.6,2902.5,8.82943455]
[1764086634839,0.1,2902.6,2902.5,3.44530577]
[1764086635161,0.5475,2902.6,2902.5,3.44530577]
[1764086635627,0.5475,2902.6,2901.8,10.33841064]
[1764086635833,0.4495,2902.6,2901.9,0.221]
[1764086636028,0.1015,2902.0,2901.8,6.89227376]
[1764086636262,0.1015,2902.0,2901.8,3.44613688]
[1764086636434,0.1015,2902.0,2901.8,6.89227376]
[1764086637134,0.002,2902.6,2901.8,3.44613688]
[1764086637135,0.6858,2901.9,2901.8,3.44613688]
[1764086637323,0.453,2902.6,2901.8,6.89227376]
[1764086637523,0.451,2902.5,2901.8,10.33841064]
[1764086637719,0.2344,2901.9,2901.8,3.44613688]
[1764086637939,0.6822,2901.9,2901.8,3.44613688]
[1764086638330,0.002,2902.6,2901.8,3.44613688]
[1764086638530,0.451,2902.4,2901.6,14.51109175]
[1764086638819,0.002,2902.6,2901.6,14.51109175]
[1764086639032,0.002,2902.6,2901.7,0.1]
[1764086639235,0.002,2902.6,2901.6,14.51109175]
[1764086639236,0.4631,2902.5,2901.6,14.51109175]
[1764086639638,0.4631,2902.5,2901.7,0.1]
[1764086640259,0.086,2901.8,2901.6,7.61834293]
[1764086640457,0.222,2901.8,2901.6,7.61834293]
[1764086640655,0.002,2902.6,2901.6,11.06471734]
[1764086640857,0.136,2901.9,2901.6,11.06471734]
[1764086641029,0.136,2901.9,2901.6,4.17196852]
[1764086641030,0.4753,2901.7,2901.6,4.17196852]
[1764086642123,0.002,2902.6,2901.6,7.61834293]
[1764086642459,0.002,2902.6,2901.8,0.1]